Cogmind - Beta 13 @@@ ROGUE MODE // 2024.07.02 @ 11:01:35 Player: Mr.Morel Result: Self-destructed Performance ------------- Evolutions (1) 500 Regions Visited (2) 400 Robots Destroyed (38) 190 Value Destroyed (842) 842 Prototype IDs (0) 0 Alien Tech Used (0) 0 Bonus (22) 22 TOTAL SCORE: 1954 Bonus ------- High Alert Combat Kills 22 Cogmind --------- Core Integrity 120/400 Matter 293/300 Energy 100/100 System Corruption 0% Temperature Cool (0) Movement Walking (120) Location -9/Materials Parts ------- > --- POWER (1) -------- (None) > --- PROPULSION (4) --- Aluminum Leg Aluminum Leg > --- UTILITY (2) ------ Small Storage Unit > --- WEAPON (2) ------- (None) > --- INVENTORY (8) ---- Aluminum Leg Heat Sink Structural Scanner Core Shielding Peak State ------------ > --- POWER ------------ Ion Engine > --- PROPULSION ------- Aluminum Leg Aluminum Leg Aluminum Leg Aluminum Leg > --- UTILITY ---------- Small Storage Unit Sensor Array > --- WEAPON ----------- EM Pulse Gun Light Assault Rifle > --- INVENTORY -------- Heat Sink Core Shielding Grenade Launcher Mining Laser [Rating: 9] Favorites ----------- Power Ion Engine Engine Ion Engine Propulsion Aluminum Leg Leg Aluminum Leg Utility Small Storage Unit Device Sensor Array Storage Small Storage Unit Weapon Light Assault Rifle Energy Gun EM Pulse Gun Ballistic Gun Light Assault Rifle Launcher Grenade Launcher Special Weapon Mining Laser Build | -11 -10 -9 ------- Run | Yrd Mat Mat Slots Evolved 2 | . . 2 Power . | . . . Propulsion 2 | . . 2 Utility . | . . . Weapon . | . . . Parts Attached 23 | 6 9 8 Power 2 | 1 1 . Engine 2 | 1 1 . Core . | . . . Reactor . | . . . Propulsion 8 | 2 2 4 Treads . | . . . Leg 8 | 2 2 4 Wheel . | . . . Hover . | . . . Flight . | . . . Utility 4 | 1 3 . Device 3 | . 3 . Storage 1 | 1 . . Processor . | . . . Hackware . | . . . Protection . | . . . Artifact . | . . . Weapon 9 | 2 3 4 Energy Gun 3 | 1 2 . Energy Cannon . | . . . Ballistic Gun 3 | 1 1 1 Ballistic Cannon . | . . . Launcher 2 | . . 2 Special Weapon 1 | . . 1 Impact Weapon . | . . . Slashing Weapon . | . . . Piercing Weapon . | . . . Special Melee Weapon . | . . . Unidentified Prototypes . | . . . Parts Lost 12 | . 2 10 Power 1 | . . 1 Propulsion 5 | . 1 4 Utility 1 | . . 1 Weapon 5 | . 1 4 Highest Loss Streak 7 | . 1 7 To Critical Strikes . | . . . Average Slot Usage (%) 91 | . 97 74 Engine 11 | . 14 5 Leg 28 | . 27 32 Device 11 | . 11 8 Storage 13 | . 14 11 Energy Gun 10 | . 11 5 Ballistic Gun 13 | . 15 7 Naked Turns . | . . . Heaviest Build 16 | 11 14 16 Greatest Support 40 | 20 20 40 Greatest Overweight (x) 3 | 3 1 . Average Overweight (x) . | . . . Largest Inventory Capacity 8 | 8 8 8 Average Capacity 7 | 7 8 8 Most Carried 7 | . 7 6 Average Carried 4 | . 4 4 Final Capacity 8 | 8 8 8 Final Carried 6 | . 6 4 Class Distribution -------------------- 83% | Mutant 16% | Scavenger-Mutant Dominant Class ---------------- Mutant | -10/Materials Mutant | -9/Materials Resources | -11 -10 -9 ----------- Run | Yrd Mat Mat Matter Collected 552 | 259 147 146 Remotely . | . . . Salvage Created 807 | . 480 327 Parts 61 | . 29 32 Haulers Intercepted . | . . . Recyclers Shooed 1 | . . 1 Parts Field Recycled . | . . . Retrieved Matter . | . . . Parts Self-Destructed . | . . . Prevented . | . . . Kills | -11 -10 -9 ------- Run | Yrd Mat Mat Combat Hostiles Destroyed 31 | . 14 17 Guns 18 | . 13 5 AOE 13 | . 1 12 Classes Destroyed 7 | . 4 3 Worker 2 | . . 2 Tunneler 1 | . . 1 Operator 1 | . 1 . Watcher 3 | . 1 2 Swarmer 14 | . 5 9 Grunt 16 | . 9 7 Sentry 1 | . . 1 Best Kill Streak 11 | . 4 11 Combat Bots Only 8 | . 4 8 Max Kills in Single Turn 4 | . 1 4 Gunslinging . | . . . Exploded 2 | . 1 2 Melee . | . . . Uniques/NPCs Destroyed . | . . . Combat | -11 -10 -9 -------- Run | Yrd Mat Mat Hostile Shots Fired 172 | . 75 97 Missed 40 | . 20 20 Damage Taken 1433 | . 564 869 Core 424 | . 144 280 Absorbed by Shields . | . . . Core Remaining (%) 71 | 100 42 . Volleys Fired 88 | . 52 36 Largest 2 | . 2 2 Hottest 120 | . 60 120 Shots Fired 151 | . 101 50 Gun 137 | . 101 36 Cannon . | . . . Launcher 13 | . . 13 Special 1 | . . 1 Kinetic 85 | . 64 21 Thermal 1 | . . 1 Explosive 13 | . . 13 Electromagnetic 52 | . 37 15 Robot Hit Streak 9 | . 7 9 Robot Miss Streak 5 | . 5 2 Penetration Max . | . . . Secondary Targets 2 | . 2 . Max Gunslinging Chain 1 | . 1 . Shots Hit Robots 82 | . 61 21 Core Hits 70 | . 30 40 Critical Kills . | . . . Critical Parts Destroyed . | . . . Critical Strikes 2 | . 1 1 Corrupt 2 | . 1 1 Melee Attacks . | . . . Impact . | . . . Slashing . | . . . Piercing . | . . . Sneak Attacks . | . . . Combat Hostiles . | . . . Follow-up Attacks . | . . . Damage Inflicted 1966 | . 694 1272 Guns 822 | . 618 204 Cannons . | . . . Explosions 1130 | . 76 1054 Melee . | . . . Ramming 14 | . . 14 Kinetic 418 | . 306 112 Thermal 76 | . 76 . Explosive 1054 | . . 1054 Electromagnetic 404 | . 312 92 Impact . | . . . Slashing . | . . . Piercing . | . . . Highest Corruption . | . . . Average Corruption . | . . . Corruption Purged . | . . . Corruption Blocked . | . . . Overload Shots . | . . . Overflow Damage 21 | . . 21 Projectiles . | . . . Explosions 21 | . . 21 Melee . | . . . Knockbacks . | . . . Impact . | . . . Kinetic . | . . . Secondary . | . . . Self-Inflicted Damage 99 | . . 99 Shots 3 | . . 3 Rammed . | . . . Targets Rammed 8 | . . 8 Kicked 8 | . . 8 Crushed . | . . . Highest Temperature 88 | . 88 28 Average Temperature 22 | . 29 11 Received Heat Transfer 471 | . 234 237 Siege Activations . | . . . Robots Corrupted . | . . . Combat Hostiles . | . . . Parts Fried 3 | . 3 . Impact Corruptions . | . . . Robots Melted . | . . . Combat Hostiles . | . . . Parts Melted . | . . . Heat Transferred 50 | . 50 . Parts Sabotaged . | . . . Parts Stolen . | . . . Parts Stripped . | . . . Power Chain Reactions 2 | . 2 . Alert | -11 -10 -9 ------- Run | Yrd Mat Mat Peak Influence 492 | . 222 492 Initial 31 | . . 31 Average 144 | . 124 228 Maximum Alert Level 2 | . 1 2 Low Security (%) 73 | 100 80 46 Level 1 23 | . 19 37 Level 2 3 | . . 15 Level 3 . | . . . Level 4 . | . . . Level 5 . | . . . High Security . | . . . Max Security . | . . . Squads Dispatched 6 | . 3 3 Investigation 3 | . 2 1 Extermination . | . . . Reinforcement 3 | . 1 2 Assault . | . . . Garrison . | . . . Intercept . | . . . Searches Triggered . | . . . Construction Impeded 1 | . . 1 Haulers Reinforced . | . . . Active Scanning Responses . | . . . Cargo Convoy Interrupts . | . . . Stealth | -11 -10 -9 --------- Run | Yrd Mat Mat Distress Signals 7 | . 1 6 Communications Jammed . | . . . Distress Signals . | . . . Times Spotted 48 | . 24 24 Peak Tracking Total 6 | . 3 6 Tactical Retreats 2 | . 1 1 Traps | -11 -10 -9 ------- Run | Yrd Mat Mat Traps Triggered 1 | . 1 . Indirectly . | . . . Trap Hack Attempts . | . . . Triggered . | . . . Disarmed . | . . . Reprogrammed . | . . . Reused . | . . . Traps Extracted . | . . . Installed . | . . . Triggered . | . . . Machines | -11 -10 -9 ---------- Run | Yrd Mat Mat Machines Disabled 4 | . 2 2 Max in Single Turn 2 | . 1 2 Machines Repaired . | . . . Machines Dismantled . | . . . Machines Sabotaged . | . . . Overloaded Fab Kills . | . . . Hacking | -11 -10 -9 --------- Run | Yrd Mat Mat Machines Accessed 7 | . 5 2 Terminals 7 | . 5 2 Fabricators . | . . . Repair Stations . | . . . Recycling Units . | . . . Scanalyzers . | . . . Garrison Access . | . . . Total Hacks 19 | . 12 7 Successful 8 | . 4 4 Failed 11 | . 8 3 Catastrophic 2 | . 2 . Database Lockouts . | . . . Manual . | . . . Terminals 19 | . 12 7 Fabricators . | . . . Repair Stations . | . . . Recycling Units . | . . . Scanalyzers . | . . . Garrison Access . | . . . Terminal Hacks 8 | . 4 4 Emergency Access Points 1 | . 1 . Dispatch Records 1 | . . 1 Recall Investigation 1 | . . 1 Hauler Manifests 2 | . 1 1 Zone Layout 3 | . 2 1 Fabricator Hacks . | . . . Repair Station Hacks . | . . . Recycling Unit Hacks . | . . . Scanalyzer . | . . . Garrison Access Hacks . | . . . Unauthorized Hacks . | . . . Terminals . | . . . Fabricators . | . . . Repair Stations . | . . . Recycling Units . | . . . Scanalyzers . | . . . Garrison Access . | . . . Data Cores Recovered . | . . . Used . | . . . Hacking Detections 7 | . 5 2 Full Trace Events 2 | . 1 1 Feedback Events . | . . . Feedback Blocked . | . . . Robot Schematics Acquired . | . . . Robots Built . | . . . Authchips . | . . . Time . | . . . Total Robot Build Rating . | . . . Part Schematics Acquired . | . . . Parts Built . | . . . Authchips . | . . . Time . | . . . Total Part Build Rating . | . . . Parts Repaired . | . . . Time . | . . . Parts Recycled . | . . . Recycled Matter . | . . . Retrieved Matter . | . . . Retrieved Components . | . . . Parts Scanalyzed . | . . . Part Schematics Acquired . | . . . Parts Damaged . | . . . Bothacking | -11 -10 -9 ------------ Run | Yrd Mat Mat Used RIF Installer . | . . . Robots Hacked . | . . . Non-combat . | . . . Combat . | . . . Robot Hacks Applied . | . . . Relay Couplers Released . | . . . Fabnet Peak Effective % . | . . . Robots Rewired . | . . . Allies Hacked . | . . . Hacks Repelled . | . . . Allies | -11 -10 -9 -------- Run | Yrd Mat Mat Total Allies . | . . . Largest Group . | . . . Highest-Rated Group . | . . . Highest-Rated Ally . | . . . Total Orders . | . . . Ally Attacks . | . . . Total Damage . | . . . Kills . | . . . Allies Corrupted . | . . . Allies Melted . | . . . Intel | -11 -10 -9 ------- Run | Yrd Mat Mat Robot Analysis Total . | . . . Derelict Logs Recovered . | . . . Drone Launches . | . . . Drone Recoveries . | . . . Exploration | -11 -10 -9 ------------- Run | Yrd Mat Mat Turns Passed 1360 | 57 976 327 Spaces Moved 900 | 39 677 184 Core 9 | 9 . . Treads . | . . . Legs 891 | 30 677 184 Wheels . | . . . Hover . | . . . Flight . | . . . Fastest Speed 50 | 50 120 120 Average Speed 120 | 126 120 120 Slowest Speed 200 | 200 190 120 Overloaded Moves . | . . . Propulsion Burnouts . | . . . Robots Hopped . | . . . Cave-ins Triggered . | . . . Exploration Rate (%) 30 | 3 73 16 Regions Visited 2 Branch Regions . Pre-discovered Areas . | . . . Known Exits Taken . | . . . Unknown Exits Taken 2 | 1 1 . Scrap Searched . | . . . Spaces Dug 1 | . . 1 Terrain Destroyed 44 | . 2 42 Melee . | . . . Projectile 1 | . . 1 AOE 43 | . 2 41 Terrain Rammed . | . . . Walls Destroyed . | . . . Machines Disabled . | . . . Actions | -11 -10 -9 --------- Run | Yrd Mat Mat Total 1032 | 44 750 238 Wait . | . . . Move 898 | 38 676 184 Hop . | . . . Pick Up 10 | . 8 2 Fast Attach 10 | 6 2 2 Attach 6 | . 2 4 Detach 1 | . 1 . Swap 7 | . 5 2 Drop 4 | . 4 . Fire 88 | . 52 36 Melee . | . . . Ram . | . . . Kick 8 | . . 8 Crush . | . . . Escape Stasis . | . . . Rewire . | . . . Trap . | . . . Miscellaneous . | . . . Route ------- -11/Scrapyard -10/Materials (discovered 3 exits: *Mat x2 / [*Min]) -9/Materials History --------- Turn | Location | Event 7 | -11/Scrapyard | Discovered new exit (range 16) 58 | -11/Scrapyard | Entered Materials 92 | -10/Materials | Discovered new exit (range 16) 231 | -10/Materials | Discovered new exit (range 16) 316 | -10/Materials | Build established: Mutant 533 | -10/Materials | Core integrity fell below 50% 946 | -10/Materials | Discovered new exit (range 7) 1034 | -10/Materials | Entered another Materials area 1034 | -9/Materials | Evolved 2 slots: Propulsion x2 1226 | -9/Materials | Destroyed 8 combat bots 1310 | -9/Materials | Core integrity fell below 50% 1347 | -9/Materials | Lost 7 parts (3n1u3w) 1361 | -9/Materials | Self-destructed Last Messages --------------- Acquired 9 matter. U-05 Engineer lays Concrete. U-05 Engineer builds a Wall. Acquired Aluminum Leg. R-06 Scavenger collects Flight Unit. U-05 Engineer builds a Wall. R-06 Scavenger collects Flight Unit. Acquired 3 matter. U-05 Engineer lays Concrete. R-06 Scavenger collects Sml. Laser. U-05 Engineer lays Concrete. R-06 Scavenger collects Wheel. U-05 Engineer lays Concrete. R-06 Scavenger collects Imp. Terrain Scanner. U-05 Engineer lays Concrete. R-06 Scavenger collects Seismic Detector. U-05 Engineer lays Concrete. U-05 Engineer builds a Wall. R-06 Scavenger collects Wheel. U-05 Engineer builds a Wall. Map ----- +----------------------------------------------------+ | ???????? ^ | | ???????????????######### ##############+ | | ???????????????????????# """"""" #????????# | | ?????????????????????### """"""" #????????# """ | | ?????????????????????#"" """"""" #????????#""""" | | ?????????????????????#"T """"""" #????????#""""" | | ?????????????????????#"" """"""" ###??????#""""" | | ?????????????????????### ""#??????# """ | | ???????????????????????# T"#??????# | | ???????????????????????# ""#??????# | | ???????????????????????# ! ###??????###### | | ???????????????????????#! #############?? | | ???????????????????????# # #?? | | ???????????????????????# # #?? | | ???????????????????????# # #?? | | ???????????????????????# + #?? | | ???????????????????????# """"""" # #?? | | ??????????????????????## """"""" # #?? | | ??????????????????????## "" " # #?? | | ??????????????????????## " # # ########?? | | ????????????????????#### % " ## ########?? | | ???????????????????? ## % #% """ #?? | | ?????????????????"" ## # """ #?? | | ?????????????????"" # # """ #?? | | ?????????????????"" ## " " / ????? | | ????????????????? ???## @" """ " # !!] ?????? | | ??????????????????????## " """"" #??!!] ?????? | | ??????????????????????## """"""" #????? ??????? | | ??????????????????????# u #?????????????? | | ??????????????????????## #?????????????? | | ?????????????????????## r #?????????????? | | ?????????????????????# ###+## #?????????????? | | ?????????????????????# u## # #?????????????? | | ?????????????????????## ## #?#?????????????? | | ????????????????####### ## #???????????????? | | ????????? wY ## #???????????????? | | ????????? ## #???????????????? | | ????????? ## #???????????????? | | ?????????? ###+###### #### #???????????????? | | ???????????????????????# #?# ####???????????????? | | ???????????????????????# #?##???????????????????? | | ???????????????????????# #??????????????????????? | | ???????????????????????# #??????????????????????? | | ???????????????????????# #??????????????????????? | | ???????????????????????# #??????????????????????? | | ???????????????????????# #??????????????????????? | | ???????????????????????# #??????????????????????? | | ???????????????????????? #??????????????????????? | | ???????????????????????? ???????????????????????? | | ???????????????????????? ???????????????????????? | +----------------------------------------------------+ Best States ------------- Heat Dissipation 35 Energy Generation 10 Energy Capacity 250 Matter Stores 300 Matter Capacity 300 Sight Range 16 Robot Scan Range 14 Terrain Scan Density 10 Evasion (%) 55 Item Schematics ----------------- None Robot Schematics ------------------ None Fabricated ------------ Nothing Alien Tech Used ----------------- None Achievements -------------- None Challenges ------------ None Game ------ Seed SkeletonSpacefoldGreatsword Manual? 0 Play Time 00:16:11 Cumulative 11.6 hours Start 2024.07.02 @ 10:46:26 End 2024.07.02 @ 11:01:35 Sessions 1 Manual Loads 0 Difficulty Rogue Special Mode None Game No. 29 Rogue 29 Adventurer 0 Explorer 0 Win Type - Total 0 Types 0/0/0/0/0/0/0/0/0 Lore% 12 Gallery% 18 Achievement% 14 Wizard Run 0 Options --------- Layout 2 ASCII 0 Keyboard 1 Movement Arrows Keybinds 0 Fullscreen 1 Font 24/Cog Map View 50x44 Zoom Use 0% Tactical HUD 0 Map Filters NONE Filters NONE Steam 1 RUN: aa528da5-ca0b-425a-9f88-ea3d3f98701b